bitfinex/quotes_SOLUSD_20220307
["timestamp","ask_amount","ask_price","bid_price","bid_amount"]
[1646615905322,120.5,83.204,83.142,48.18269691]
[1646615905524,6.011,83.203,83.142,48.18269691]
[1646615906322,120.5,83.204,83.142,48.18269691]
[1646615906723,120.5,83.204,83.141,23.7838]
[1646615906924,120.5,83.2,83.114,27.03592655]
[1646615907124,120.5,83.2,83.1,13.94]
[1646615907125,120.5,83.194,83.09,13.94]
[1646615907325,72.26,83.185,83.08,13.94]
[1646615907545,120.5,83.184,83.08,13.94]
[1646615907745,120.5,83.182,83.081,50.52251649]
[1646615907945,6.013,83.181,83.09,13.94]
[1646615908146,27.40488546,83.184,83.11,13.94]
[1646615908344,5.86970769,83.192,83.11,13.94]
[1646615908742,5.86970769,83.192,83.111,29.67059774]
[1646615908942,43.55153705,83.191,83.111,87.56017526]
[1646615909143,126.513,83.19,83.111,87.56017526]
[1646615909344,120.5,83.186,83.111,87.56017526]
[1646615909543,5.98516159,83.183,83.111,57.88957752]
[1646615909843,6.013,83.182,83.111,57.88957752]
[1646615910243,120.5,83.179,83.111,57.88957752]
[1646615910443,8.34037358,83.178,83.111,57.88957752]
[1646615910648,6.013,83.178,83.111,57.88957752]
[1646615910845,6.013,83.182,83.111,57.88957752]
[1646615911847,45.85964949,83.181,83.111,57.88957752]
[1646615912050,6.013,83.18,83.111,57.88957752]
[1646615912447,126.513,83.18,83.111,57.88957752]
[1646615913249,6.013,83.18,83.111,57.88957752]
[1646615913446,6.013,83.182,83.111,57.88957752]
[1646615913648,27.31235321,83.193,83.111,57.88957752]
[1646615913847,120.5,83.191,83.111,57.88957752]
[1646615914251,62.80800408,83.192,83.111,57.88957752]
[1646615915147,27.31235321,83.193,83.111,57.88957752]
[1646615915348,6.013,83.192,83.112,29.67059774]
[1646615915548,30.0015,83.212,83.112,29.67059774]
[1646615915752,30.0015,83.212,83.112,63.64699405]
[1646615916048,23.9885,83.212,83.113,148.49639631]
[1646615916247,23.9885,83.212,83.113,178.16699405]
[1646615916449,23.9885,83.212,83.114,82.15649405]
[1646615916648,120.5,83.211,83.12,18.0442]
[1646615916847,120.5,83.211,83.13,13.94]
[1646615917050,6.011,83.21,83.131,62.52918813]
[1646615917651,6.011,83.21,83.132,24.4895]
[1646615918253,126.511,83.21,83.132,24.4895]
[1646615918451,126.511,83.211,83.132,24.4895]
[1646615918652,6.011,83.211,83.132,24.4895]
[1646615919255,6.011,83.211,83.132,54.16009774]
[1646615919456,23.8412,83.224,83.133,27.99639631]
[1646615919654,23.8412,83.224,83.133,57.96629631]
[1646615919853,6.011,83.246,83.135,0.57744482]
[1646615920053,24.5514,83.248,83.15,13.94]
[1646615920255,24.5514,83.248,83.18,18.0299]
[1646615920556,6.01,83.259,83.181,59.9278904]
[1646615920758,6.008,83.268,83.181,59.9278904]
[1646615921055,6.007,83.277,83.182,54.59271508]
[1646615921457,6.007,83.277,83.2,18.0268]
[1646615921655,6.007,83.277,83.201,47.21354409]
[1646615922055,20.11698184,83.276,83.201,47.21354409]
[1646615922256,6.006,83.275,83.201,47.21354409]
[1646615922658,12.2753308,83.275,83.201,47.21354409]
[1646615923262,6.006,83.275,83.21,18.0241]
[1646615923457,6.006,83.296,83.22,13.94]
[1646615923658,6.26802637,83.292,83.221,63.74115496]
[1646615923859,6.005,83.291,83.221,63.74115496]
[1646615924859,6.005,83.291,83.23,18.0199]
[1646615925060,6.26802637,83.292,83.23,31.9599]
[1646615925260,5.56895735,83.313,83.23,31.9599]
[1646615925463,6.26637929,83.302,83.23,38.9699]
[1646615925863,120.5,83.31,83.23,38.9699]
[1646615926060,18.8903,83.306,83.23,13.94]
[1646615927060,6.003,83.305,83.23,13.94]
[1646615929664,18.8903,83.306,83.23,31.9597]
[1646615929866,6.003,83.31,83.23,31.9597]
[1646615930066,6.003,83.327,83.231,121.04086239]
[1646615930271,6.003,83.328,83.234,0.60422745]
[1646615930567,6.003,83.331,83.234,0.60422745]
[1646615930767,42.86795432,83.338,83.236,120.5]
[1646615930970,5.83939795,83.343,83.25,13.94]
[1646615931169,5.83939795,83.343,83.251,28.5429]
[1646615931170,126.33939795,83.343,83.251,28.5429]
[1646615931368,5.83939795,83.343,83.252,0.60422745]
[1646615931569,5.83939795,83.343,83.26,18.0129]
[1646615931869,6.003,83.342,83.27,13.94]
[1646615932071,73.5119,83.346,83.271,6.002]
[1646615933070,6.002,83.345,83.271,6.002]
[1646615933871,5.77988787,83.345,83.271,6.002]
[1646615935771,5.77988787,83.345,83.27,31.9511]
[1646615936670,49.0675,83.346,83.271,6.001]
[1646615937270,4.87872376,83.344,83.271,6.001]
[1646615937470,6.001,83.343,83.27,13.94]
[1646615937871,72.26,83.342,83.261,55.81632723]
[1646615938072,72.26,83.34,83.261,55.81632723]
[1646615938270,192.76,83.335,83.261,55.81632723]
[1646615938472,126.15461002,83.333,83.261,55.81632723]
[1646615938673,6.002,83.332,83.261,55.81632723]
[1646615938876,4.11702967,83.338,83.262,6.002]
[1646615939073,4.45685157,83.344,83.262,55.1067]
[1646615939276,120.5,83.342,83.262,55.1067]
[1646615939473,6.002,83.343,83.262,55.1067]
[1646615939873,6.002,83.343,83.262,63.0667]
[1646615940074,6.002,83.343,83.263,120.5]
[1646615940276,6.002,83.364,83.264,6.002]
[1646615940474,6.001,83.369,83.264,6.002]
[1646615940676,6.001,83.369,83.263,6.001]
[1646615941479,30.39140238,83.369,83.27,18.0101]
[1646615941674,30.39140238,83.369,83.28,13.94]
[1646615941874,120.5,83.368,83.281,23.7548]
[1646615942076,120.5,83.364,83.282,61.30493621]
[1646615942275,120.5,83.362,83.282,61.30493621]
[1646615942477,120.5,83.358,83.282,61.30493621]
[1646615942676,4.26891825,83.348,83.282,61.30493621]
[1646615942879,2.40028619,83.345,83.282,61.30493621]
[1646615943078,120.5,83.343,83.282,61.30493621]
[1646615943279,120.5,83.341,83.282,61.30493621]
[1646615943478,5.053059,83.339,83.282,61.30493621]
[1646615943876,6.001,83.338,83.282,61.30493621]
[1646615944376,120.5,83.337,83.282,61.30493621]
[1646615944577,120.5,83.335,83.282,61.30493621]
[1646615944776,120.5,83.331,83.282,61.30493621]
[1646615944986,120.5,83.331,83.262,24.4248]
[1646615944987,5.84865053,83.328,83.25,13.94]
[1646615945180,120.5,83.326,83.25,13.94]
[1646615945376,120.5,83.324,83.25,13.94]
[1646615945576,120.5,83.322,83.25,13.94]
[1646615945777,120.5,83.32,83.251,6.003]
[1646615945977,6.003,83.319,83.252,52.79692431]
[1646615946178,6.003,83.319,83.253,6.003]
[1646615947079,7.00460876,83.318,83.253,6.003]
[1646615947279,6.003,83.317,83.253,6.003]
[1646615947479,6.003,83.317,83.252,52.79692431]
[1646615947880,4.27827156,83.316,83.252,52.79692431]
[1646615948082,6.003,83.315,83.252,52.79692431]
[1646615949482,9.75482982,83.314,83.252,52.79692431]
[1646615949681,3.23658355,83.312,83.252,52.79692431]
[1646615949880,6.003,83.311,83.252,52.79692431]
[1646615950381,6.51824627,83.31,83.252,52.79692431]
[1646615950781,3.23658355,83.312,83.252,52.79692431]
[1646615950982,3.23658355,83.314,83.252,52.79692431]
[1646615951385,3.23658355,83.309,83.252,52.79692431]
[1646615951591,3.23658355,83.308,83.252,52.79692431]
[1646615952188,3.23658355,83.305,83.252,52.79692431]
[1646615952589,3.23658355,83.304,83.252,52.79692431]
[1646615952990,3.23658355,83.305,83.252,52.79692431]
[1646615953692,3.23658355,83.302,83.252,52.79692431]
[1646615954094,3.23658355,83.301,83.253,6.004]
[1646615954491,9.75482982,83.3,83.253,6.004]
[1646615954691,3.23658355,83.3,83.253,6.004]
[1646615954892,3.23658355,83.301,83.253,6.004]
[1646615955295,3.23658355,83.302,83.253,6.004]
[1646615955493,3.23658355,83.301,83.253,6.004]
[1646615955894,6.51824627,83.3,83.253,6.004]
[1646615956312,9.75482982,83.301,83.253,6.004]
[1646615956510,9.75482982,83.299,83.253,6.004]
[1646615956713,6.51824627,83.32,83.254,40.0]
[1646615956912,23.7413,83.331,83.254,40.0]
[1646615956913,6.51824627,83.327,83.254,93.2417817]
[1646615957211,6.51824627,83.326,83.255,28.4042817]
[1646615957613,6.51824627,83.33,83.255,28.4042817]
[1646615957814,6.51824627,83.325,83.255,28.4042817]
[1646615958114,6.51824627,83.324,83.255,28.4042817]
[1646615958315,5.73207393,83.328,83.254,24.8375]
[1646615958714,18.0229,83.32,83.254,24.8375]
[1646615958914,4.30713357,83.317,83.254,24.8375]
[1646615959114,120.5,83.315,83.253,6.004]
[1646615959318,120.5,83.313,83.253,6.004]
[1646615959516,120.5,83.311,83.253,6.004]
[1646615959717,4.23963635,83.308,83.253,6.004]
[1646615959917,120.5,83.306,83.253,6.004]
[1646615960117,4.23963635,83.308,83.253,6.004]
[1646615960118,120.5,83.304,83.253,6.004]
[1646615960319,6.51824627,83.303,83.253,6.004]
[1646615960518,120.5,83.302,83.253,6.004]
[1646615960919,120.5,83.3,83.253,6.004]
[1646615961319,6.51824627,83.299,83.253,6.004]
[1646615961722,120.5,83.298,83.253,6.004]
[1646615961922,11.23636245,83.297,83.253,6.004]
[1646615962119,11.23636245,83.297,83.252,52.79692431]
[1646615962120,6.51824627,83.296,83.252,52.79692431]
[1646615962922,6.003,83.295,83.252,52.79692431]
[1646615963321,6.51824627,83.294,83.252,52.79692431]
[1646615963824,120.5,83.306,83.252,52.79692431]
[1646615964023,6.51824627,83.305,83.252,52.79692431]
[1646615964224,4.7250953,83.314,83.252,52.79692431]
[1646615964426,6.51824627,83.316,83.252,52.79692431]
[1646615964624,6.51824627,83.313,83.252,52.79692431]
[1646615964824,6.51824627,83.315,83.252,52.79692431]
[1646615965025,6.51824627,83.312,83.252,52.79692431]
[1646615965225,6.003,83.311,83.252,52.79692431]
[1646615965423,6.51824627,83.31,83.252,52.79692431]
[1646615965824,6.51824627,83.314,83.252,52.79692431]
[1646615966024,6.003,83.313,83.252,52.79692431]
[1646615966224,6.51824627,83.312,83.252,52.79692431]
[1646615966825,6.51824627,83.315,83.252,52.79692431]
[1646615967029,6.51824627,83.311,83.252,52.79692431]
[1646615967226,6.51824627,83.314,83.252,52.79692431]
[1646615967425,6.51824627,83.315,83.252,52.79692431]
[1646615969427,6.003,83.314,83.252,52.79692431]
[1646615969829,6.51824627,83.313,83.252,52.79692431]
[1646615970042,6.003,83.312,83.252,52.79692431]
[1646615970228,120.5,83.31,83.252,52.79692431]
[1646615970731,6.51824627,83.309,83.252,52.79692431]
[1646615970928,6.51824627,83.314,83.252,52.79692431]
[1646615972930,6.003,83.313,83.252,52.79692431]
[1646615973129,6.51824627,83.312,83.252,52.79692431]
[1646615973331,6.003,83.311,83.252,52.79692431]
[1646615973529,6.51824627,83.31,83.252,52.79692431]
[1646615973729,6.003,83.309,83.252,52.79692431]
[1646615973929,6.51824627,83.308,83.252,52.79692431]
[1646615974131,6.003,83.307,83.252,52.79692431]
[1646615974334,6.51824627,83.306,83.252,52.79692431]
[1646615974532,6.003,83.305,83.252,52.79692431]
[1646615974733,6.51824627,83.304,83.252,52.79692431]
[1646615974931,6.51824627,83.314,83.252,52.79692431]
[1646615975135,6.51824627,83.315,83.252,52.79692431]
[1646615975731,6.51824627,83.316,83.252,52.79692431]
[1646615980740,6.51824627,83.316,83.252,81.20120601]
[1646615980943,6.003,83.34,83.252,81.20120601]
[1646615980944,6.51824627,83.33,83.252,81.20120601]
[1646615981343,6.51824627,83.33,83.252,105.97609803]
[1646615981942,6.51824627,83.33,83.26,18.0118]
[1646615982143,6.51824627,83.33,83.27,13.94]
[1646615983064,6.51824627,83.33,83.271,49.64989128]
[1646615983264,12.52024627,83.33,83.271,49.64989128]
[1646615983465,6.51824627,83.329,83.271,49.64989128]
[1646615985174,6.002,83.328,83.271,49.64989128]
[1646615985570,6.51824627,83.327,83.271,49.64989128]
[1646615986271,22.886,83.341,83.271,49.64989128]
[1646615986475,26.85022721,83.33,83.271,49.64989128]
[1646615986672,6.51174726,83.329,83.271,49.64989128]
[1646615987078,6.51174726,83.33,83.271,49.64989128]
[1646615987475,20.33684262,83.329,83.271,67.85489128]
[1646615987673,20.33684262,83.329,83.271,49.64989128]
[1646615987872,6.51174726,83.328,83.271,49.64989128]
[1646615988078,6.002,83.327,83.271,49.64989128]
[1646615988289,6.51174726,83.326,83.271,49.64989128]
[1646615988474,6.002,83.325,83.271,49.64989128]
[1646615988682,6.51174726,83.324,83.271,49.64989128]
[1646615988875,6.002,83.323,83.271,49.64989128]
[1646615989075,6.51174726,83.322,83.271,49.64989128]
[1646615989276,6.002,83.321,83.271,49.64989128]
[1646615989476,26.33884262,83.321,83.271,49.64989128]
[1646615989676,6.51174726,83.32,83.271,49.64989128]
[1646615989877,6.002,83.319,83.271,49.64989128]
[1646615990279,143.8478,83.33,83.271,49.64989128]
[1646615990477,6.5129164,83.329,83.271,49.64989128]
[1646615990678,26.84723663,83.329,83.271,49.64989128]
[1646615990876,6.5129164,83.328,83.271,49.64989128]
[1646615991077,26.84723663,83.328,83.271,49.64989128]
[1646615991277,6.5129164,83.327,83.271,49.64989128]
[1646615991479,26.84723663,83.327,83.271,49.64989128]
[1646615991683,6.5129164,83.326,83.271,49.64989128]
[1646615991882,26.84723663,83.326,83.271,49.64989128]
[1646615992078,6.5129164,83.325,83.271,49.64989128]
[1646615992279,26.84723663,83.325,83.271,49.64989128]
[1646615992477,6.5129164,83.324,83.271,49.64989128]
[1646615993081,12.5149164,83.329,83.271,49.64989128]
[1646615993279,6.5129164,83.328,83.271,49.64989128]
[1646615993480,20.35278138,83.328,83.271,49.64989128]
[1646615993679,6.5129164,83.327,83.271,49.64989128]
[1646615994381,20.35278138,83.326,83.271,49.64989128]
[1646615994580,6.5129164,83.325,83.271,49.64989128]
[1646615995379,6.002,83.329,83.271,49.64989128]
[1646615995581,22.6587,83.346,83.271,49.64989128]
[1646615995780,6.51110863,83.328,83.271,49.64989128]
[1646615995980,26.8607813,83.33,83.271,49.64989128]
[1646615996181,6.51110863,83.329,83.271,49.64989128]
[1646615996381,26.8607813,83.329,83.271,49.64989128]
[1646615996681,6.51110863,83.328,83.271,49.64989128]
[1646615997183,6.51110863,83.328,83.272,30.63247303]
[1646615997382,6.51110863,83.34,83.272,30.63247303]
[1646615997581,22.6587,83.346,83.273,23.7528]
[1646615997982,6.5096844,83.345,83.274,30.63247303]
[1646615998183,6.5096844,83.345,83.28,18.0074]
[1646615998483,6.5096844,83.345,83.29,13.94]
[1646615998782,26.34726612,83.344,83.291,53.05380532]
[1646615999184,6.5096844,83.343,83.291,53.05380532]
[1646615999385,6.001,83.342,83.291,53.05380532]
[1646615999785,22.6587,83.346,83.291,53.05380532]
[1646615999986,6.5107155,83.345,83.291,53.05380532]
[1646616005798,20.33790249,83.344,83.291,53.05380532]
[1646616005998,6.5107155,83.343,83.291,53.05380532]
[1646616006398,120.5,83.342,83.291,53.05380532]
[1646616006598,120.5,83.34,83.275,24.2663]
[1646616006798,120.5,83.338,83.25,13.94]
[1646616007000,120.5,83.336,83.251,24.2017]
[1646616007197,124.64726446,83.334,83.251,24.2017]
[1646616007399,6.002,83.333,83.251,24.2017]
[1646616007600,120.5,83.331,83.252,52.60135079]
[1646616007800,3.48505998,83.33,83.252,52.60135079]
[1646616008001,120.5,83.328,83.252,52.60135079]
[1646616008202,5.42073425,83.318,83.252,52.60135079]
[1646616008400,41.11152088,83.317,83.252,52.60135079]
[1646616008599,6.5107155,83.316,83.252,52.60135079]
[1646616010027,120.5,83.315,83.252,52.60135079]
[1646616010324,6.003,83.314,83.25,13.94]
[1646616010619,140.81086499,83.313,83.241,30.57508054]
[1646616010820,120.5,83.311,83.241,30.57508054]
[1646616011020,4.91083131,83.308,83.241,30.57508054]
[1646616011218,6.5107155,83.307,83.241,30.57508054]
[1646616011419,126.503,83.306,83.242,59.24964458]
[1646616011620,6.5107155,83.305,83.242,59.24964458]
[1646616011818,120.5,83.302,83.242,59.24964458]
[1646616012018,1.62260358,83.281,83.242,59.24964458]
[1646616012219,1.62260358,83.28,83.242,59.24964458]
[1646616012420,1.62260358,83.277,83.242,59.24964458]
[1646616012720,1.62260358,83.277,83.243,0.40140507]
[1646616013222,1.62260358,83.272,83.243,0.40140507]
[1646616013424,1.62260358,83.271,83.243,0.40140507]
[1646616013721,1.62260358,83.273,83.243,0.40140507]
[1646616014121,120.5,83.271,83.243,0.40140507]
[1646616014721,1.62260358,83.268,83.243,0.40140507]
[1646616015323,1.62260358,83.269,83.243,0.40140507]
[1646616015721,1.62260358,83.269,83.222,0.40140507]
[1646616015923,6.006,83.27,83.222,0.40140507]
[1646616016326,1.62260358,83.261,83.222,0.40140507]
[1646616016521,4.91152938,83.259,83.222,0.40140507]
[1646616016721,155.10080538,83.258,83.222,0.40140507]
[1646616017322,6.006,83.257,83.222,0.40140507]
[1646616018923,155.10080538,83.258,83.222,0.40140507]
[1646616019123,6.006,83.257,83.222,0.40140507]
[1646616019525,6.006,83.257,83.212,0.40140507]
[1646616020525,6.007,83.258,83.212,0.40140507]
[1646616020727,1.62260358,83.266,83.212,0.40140507]
[1646616021028,5.05272574,83.267,83.212,0.40140507]
[1646616021227,120.5,83.265,83.212,0.40140507]
[1646616021428,6.006,83.264,83.212,0.40140507]
[1646616027435,6.006,83.266,83.212,0.40140507]
[1646616028136,120.5,83.281,83.213,29.27729054]
[1646616028738,120.5,83.281,83.214,6.006]
[1646616029139,120.5,83.281,83.215,29.27729054]
[1646616029337,120.5,83.281,83.216,6.006]
[1646616029536,122.12260358,83.281,83.216,6.006]
[1646616030042,1.62260358,83.282,83.216,6.006]
[1646616030239,7.62860358,83.284,83.22,13.94]
[1646616030437,1.62260358,83.293,83.221,6.005]
[1646616030636,1.62260358,83.294,83.221,38.47271588]
[1646616030837,1.62260358,83.293,83.221,6.005]
[1646616031042,1.62260358,83.294,83.222,97.36378418]
[1646616031240,1.62260358,83.294,83.223,30.0968]
[1646616031439,1.62260358,83.294,83.223,62.56451588]
[1646616031643,1.62260358,83.294,83.224,32.46771588]
[1646616031842,1.62260358,83.295,83.225,6.005]
[1646616032039,1.62260358,83.296,83.225,6.005]
[1646616032240,126.505,83.311,83.226,32.46771588]
[1646616032241,1.62260358,83.295,83.226,32.46771588]
[1646616032441,1.62260358,83.295,83.23,13.94]
[1646616032642,1.62260358,83.295,83.231,6.005]
[1646616032842,6.005,83.314,83.231,6.005]
[1646616032843,1.62260358,83.294,83.231,39.87915988]
[1646616033042,1.62260358,83.289,83.231,6.005]
[1646616033243,1.62260358,83.289,83.232,33.87415988]
[1646616033444,1.62260358,83.289,83.233,6.005]
[1646616033844,1.62260358,83.289,83.234,23.9752]
[1646616034045,1.62260358,83.289,83.235,66.76573784]
[1646616034447,1.62260358,83.289,83.235,61.16214291]
[1646616034645,1.62260358,83.292,83.236,39.87915988]
[1646616034847,1.62260358,83.295,83.24,13.94]
[1646616035046,1.62260358,83.303,83.241,6.003]
[1646616035246,1.62260358,83.304,83.241,39.87715988]
[1646616035447,26.40510358,83.306,83.241,39.87715988]
[1646616035646,24.7825,83.306,83.242,33.87415988]
[1646616035847,24.7825,83.306,83.243,6.003]
[1646616036049,1.62260358,83.308,83.243,6.003]
[1646616036248,1.62260358,83.308,83.244,57.84935988]
[1646616036447,1.62260358,83.308,83.246,0.52702438]
[1646616036648,1.62260358,83.308,83.26,13.94]
[1646616036850,1.62260358,83.308,83.261,52.27429486]
[1646616037247,1.62260358,83.308,83.261,46.27129486]
[1646616037855,1.62260358,83.31,83.262,0.40140507]
[1646616038555,1.62260358,83.311,83.262,0.40140507]
[1646616038756,1.62260358,83.311,83.263,6.003]
[1646616038957,1.62260358,83.309,83.263,6.003]
[1646616039156,1.62260358,83.312,83.263,6.003]
[1646616039361,1.62260358,83.313,83.263,6.003]
[1646616039857,1.62260358,83.316,83.263,6.003]
[1646616040758,1.62260358,83.314,83.263,6.003]
[1646616040958,1.62260358,83.314,83.264,0.40140507]
[1646616041259,1.62260358,83.314,83.265,6.003]
[1646616041557,1.62260358,83.314,83.27,13.94]
[1646616041758,1.62260358,83.323,83.271,6.002]
[1646616042158,1.62260358,83.325,83.271,6.002]
[1646616042969,1.62260358,83.323,83.271,6.002]
[1646616043174,1.62260358,83.324,83.271,6.002]
[1646616043769,1.62260358,83.322,83.271,6.002]
[1646616043971,1.62260358,83.325,83.271,6.002]
[1646616044169,6.002,83.34,83.271,6.002]
[1646616044170,1.62260358,83.326,83.272,0.40140507]
[1646616044574,1.62260358,83.325,83.272,0.40140507]
[1646616044971,1.62260358,83.326,83.272,0.40140507]
[1646616045172,1.62260358,83.322,83.272,0.40140507]
[1646616045376,1.62260358,83.321,83.272,0.40140507]
[1646616045571,1.62260358,83.323,83.272,0.40140507]
[1646616045773,1.62260358,83.324,83.272,0.40140507]
[1646616046173,1.62260358,83.323,83.272,0.40140507]
[1646616046672,1.62260358,83.322,83.272,0.40140507]
[1646616046874,1.62260358,83.328,83.272,0.40140507]
[1646616047078,1.62260358,83.333,83.273,33.87363988]
[1646616047276,1.62260358,83.334,83.273,33.87363988]
[1646616047574,1.62260358,83.333,83.274,58.28925877]
[1646616047775,1.62260358,83.335,83.274,58.69066384]
[1646616047976,1.62260358,83.335,83.275,33.87363988]
[1646616048177,1.62260358,83.334,83.275,33.87363988]
[1646616048376,1.62260358,83.335,83.275,33.87363988]
[1646616048576,1.62260358,83.335,83.276,24.1019]
[1646616048977,1.62260358,83.334,83.276,24.1019]
[1646616050481,1.62260358,83.334,83.276,57.97553988]
[1646616050981,1.62260358,83.334,83.277,0.40140507]
[1646616051982,1.62260358,83.333,83.277,0.40140507]
[1646616052382,1.62260358,83.332,83.277,0.40140507]
[1646616054689,1.62260358,83.329,83.277,0.40140507]
[1646616055287,1.62260358,83.33,83.277,0.40140507]
[1646616055788,6.002,83.34,83.277,0.40140507]
[1646616055789,1.62260358,83.329,83.277,0.40140507]
[1646616056387,1.62260358,83.328,83.277,0.40140507]
[1646616056588,1.62260358,83.328,83.277,34.27504495]
[1646616056788,1.62260358,83.321,83.277,34.27504495]
[1646616057088,1.62260358,83.32,83.277,34.27504495]
[1646616057389,1.62260358,83.316,83.277,0.40140507]
[1646616057587,1.62260358,83.317,83.277,0.40140507]
[1646616057988,1.62260358,83.324,83.277,0.40140507]
[1646616058189,1.62260358,83.329,83.28,13.94]
[1646616058391,1.62260358,83.339,83.28,31.9471]
[1646616058689,1.62260358,83.344,83.281,31.18697321]
[1646616058889,3.23027296,83.365,83.282,40.0]
[1646616059091,6.50999176,83.366,83.283,0.49558481]
[1646616059291,3.23027296,83.374,83.283,31.68255802]
[1646616059490,3.23027296,83.375,83.29,18.0052]
[1646616059688,6.0,83.383,83.3,13.94]
[1646616059689,3.23027296,83.378,83.3,13.94]
[1646616059890,3.23027296,83.378,83.301,24.3755]
[1646616060490,3.23027296,83.374,83.301,24.3755]
[1646616060689,5.998,83.373,83.301,24.3755]
[1646616060891,3.23027296,83.372,83.301,24.3755]
[1646616061392,42.78215867,83.373,83.301,24.3755]
[1646616061591,130.24026472,83.372,83.301,24.3755]
[1646616061791,39.55188571,83.373,83.301,24.3755]
[1646616061792,3.23027296,83.369,83.301,24.3755]
[1646616061991,5.998,83.368,83.302,0.40140507]
[1646616062190,6.50999176,83.367,83.302,0.40140507]
[1646616062393,5.998,83.366,83.302,0.40140507]
[1646616062595,120.5,83.364,83.302,0.40140507]
[1646616062793,120.5,83.362,83.302,0.40140507]
[1646616063092,12.50999176,83.361,83.302,0.40140507]
[1646616063291,6.50999176,83.36,83.302,0.40140507]
[1646616063693,127.00999176,83.361,83.302,0.40140507]
[1646616063892,12.50999176,83.36,83.302,0.40140507]
[1646616064295,11.18621205,83.358,83.302,0.40140507]
[1646616064691,6.50999176,83.357,83.302,0.40140507]
[1646616065291,6.0,83.356,83.302,0.40140507]
[1646616065491,6.50999176,83.355,83.302,0.40140507]
[1646616065892,6.0,83.354,83.302,0.40140507]
[1646616066094,6.50999176,83.353,83.302,0.40140507]
[1646616066293,6.50999176,83.354,83.302,0.40140507]
[1646616066492,6.0,83.353,83.302,0.40140507]
[1646616066693,6.50999176,83.352,83.302,0.40140507]
[1646616066898,6.0,83.351,83.302,0.40140507]
[1646616067294,6.0,83.357,83.302,0.40140507]
[1646616067598,6.51038161,83.356,83.302,0.40140507]
[1646616067794,9.23027296,83.355,83.302,0.40140507]
[1646616067995,6.51038161,83.354,83.302,0.40140507]
[1646616068196,6.0,83.353,83.302,0.40140507]
[1646616068394,6.51038161,83.352,83.302,0.40140507]
[1646616068596,3.23027296,83.347,83.302,0.40140507]
[1646616068795,3.23027296,83.344,83.292,0.40140507]
[1646616068994,126.501,83.343,83.292,0.40140507]
[1646616069196,5.52612801,83.34,83.292,0.40140507]
[1646616069397,120.5,83.338,83.292,0.40140507]
[1646616069695,120.5,83.336,83.292,0.40140507]
[1646616069895,12.51138161,83.335,83.292,0.40140507]
[1646616070197,3.23027296,83.333,83.292,0.40140507]
[1646616070395,129.73127296,83.332,83.292,0.40140507]
[1646616070597,127.01038161,83.331,83.292,0.40140507]
[1646616070794,6.001,83.33,83.292,0.40140507]
[1646616070995,12.51138161,83.33,83.292,0.40140507]
[1646616071197,6.51038161,83.329,83.292,0.40140507]
[1646616071397,6.001,83.328,83.292,0.40140507]
[1646616071895,4.71487363,83.325,83.292,0.40140507]
[1646616072095,12.51138161,83.324,83.292,0.40140507]
[1646616072296,6.51038161,83.323,83.279,0.40140507]
[1646616072497,3.23027296,83.336,83.279,0.40140507]
[1646616072698,4.38503661,83.335,83.279,0.40140507]
[1646616073099,6.51235075,83.334,83.279,0.40140507]
[1646616073297,9.74262371,83.334,83.279,0.40140507]
[1646616074098,3.23027296,83.334,83.279,0.40140507]
[1646616074298,6.51235075,83.333,83.279,0.40140507]
[1646616074497,6.51235075,83.333,83.279,24.27920507]
[1646616074698,3.23027296,83.34,83.279,24.27920507]
[1646616075500,3.23027296,83.339,83.279,24.27920507]
[1646616075703,5.60655927,83.337,83.279,24.27920507]
[1646616075903,15.74295123,83.336,83.279,24.27920507]
[1646616076101,6.51167827,83.335,83.279,24.27920507]
[1646616076301,6.001,83.334,83.279,24.27920507]
[1646616076502,6.51167827,83.333,83.279,24.27920507]
[1646616076702,6.001,83.332,83.279,24.27920507]
[1646616077001,6.51167827,83.331,83.279,24.27920507]
[1646616077502,6.51167827,83.333,83.279,24.27920507]
[1646616077702,6.51167827,83.33,83.279,24.27920507]
[1646616077905,12.51267827,83.332,83.279,24.27920507]
[1646616078103,6.51167827,83.329,83.279,24.27920507]
[1646616078305,6.51167827,83.331,83.279,24.27920507]
[1646616078503,6.51167827,83.333,83.279,24.27920507]